[Event "Late-Titled-Tuesday-Blitz-February-06-2024"]
[Site "Chess.com"]
[Date "2024.02.06"]
[Round "9"]
[White "maurovargas01"]
[Black "boguszp"]
[Result "0-1"]
[WhiteElo "1885"]
[BlackElo "2054"]
[TimeControl "180+1"]
[EndTime "15:44:02 PST"]
[Termination "boguszp won on time"]

1. e4 {[%clk 0:03:00.9]} 1... e6 {[%clk 0:02:55.9]} 2. f4 {[%clk 0:03:00.1]}
2... d5 {[%clk 0:02:56.1]} 3. e5 {[%clk 0:03:00.3]} 3... c5 {[%clk 0:02:56.6]}
4. Nf3 {[%clk 0:03:00.6]} 4... Nc6 {[%clk 0:02:57]} 5. Bb5 {[%clk 0:03:00.9]}
5... Bd7 {[%clk 0:02:55.3]} 6. Bxc6 {[%clk 0:03:01.2]} 6... Bxc6 {[%clk
0:02:54.5]} 7. O-O {[%clk 0:03:02.1]} 7... d4 {[%clk 0:02:53.5]} 8. d3 {[%clk
0:03:02]} 8... Ne7 {[%clk 0:02:50.7]} 9. g4 {[%clk 0:03:01.8]} 9... Nd5 {[%clk
0:02:44.5]} 10. h3 {[%clk 0:02:45.1]} 10... h6 {[%clk 0:02:38.7]} 11. Qe1 {[%clk
0:02:44.5]} 11... Be7 {[%clk 0:02:31.5]} 12. a3 {[%clk 0:02:44.2]} 12... Qb6
{[%clk 0:02:25.3]} 13. Rf2 {[%clk 0:02:29.4]} 13... O-O-O {[%clk 0:02:04.1]} 14.
Nbd2 {[%clk 0:02:28.7]} 14... Ne3 {[%clk 0:02:00.8]} 15. Nc4 {[%clk 0:02:27.5]}
15... Nxc4 {[%clk 0:01:57.8]} 16. dxc4 {[%clk 0:02:25]} 16... Bxf3 {[%clk
0:01:50.8]} 17. Rxf3 {[%clk 0:02:20.5]} 17... Qc6 {[%clk 0:01:51]} 18. Qf1
{[%clk 0:02:03.1]} 18... f5 {[%clk 0:01:48.1]} 19. exf6 {[%clk 0:02:01.4]} 19...
Bxf6 {[%clk 0:01:46.3]} 20. Rb1 {[%clk 0:01:59.5]} 20... Rhe8 {[%clk 0:01:44.5]}
21. b4 {[%clk 0:01:58.5]} 21... e5 {[%clk 0:01:26.2]} 22. fxe5 {[%clk
0:01:44.1]} 22... Rxe5 {[%clk 0:01:22.7]} 23. Bf4 {[%clk 0:01:35]} 23... Re4
{[%clk 0:01:19.3]} 24. Bh2 {[%clk 0:01:26.5]} 24... Rde8 {[%clk 0:01:17.8]} 25.
Rf2 {[%clk 0:01:01.2]} 25... b6 {[%clk 0:01:08.3]} 26. bxc5 {[%clk 0:00:57.9]}
26... Qxc5 {[%clk 0:01:07]} 27. a4 {[%clk 0:00:45.1]} 27... Re3 {[%clk
0:00:52.4]} 28. Qg2 {[%clk 0:00:33.3]} 28... Re1+ {[%clk 0:00:46.2]} 29. Rxe1
{[%clk 0:00:31.7]} 29... Rxe1+ {[%clk 0:00:46.9]} 30. Rf1 {[%clk 0:00:28.3]}
30... d3+ {[%clk 0:00:46.1]} 31. Kh1 {[%clk 0:00:26.7]} 31... Rxf1+ {[%clk
0:00:45.1]} 32. Qxf1 {[%clk 0:00:20.7]} 32... dxc2 {[%clk 0:00:44.7]} 0-1

[Event "Late-Titled-Tuesday-Blitz-February-06-2024"]
[Site "Chess.com"]
[Date "2024.02.06"]
[Round "9"]
[White "ural58"]
[Black "Statham_01"]
[Result "1-0"]
[WhiteElo "2487"]
[BlackElo "2578"]
[TimeControl "180+1"]
[EndTime "15:44:05 PST"]
[Termination "ural58 won on time"]

1. e4 {[%clk 0:03:00.9]} 1... e5 {[%clk 0:02:59.1]} 2. f4 {[%clk 0:03:00.4]}
2... d5 {[%clk 0:02:58.8]} 3. exd5 {[%clk 0:03:00]} 3... exf4 {[%clk 0:02:59.4]}
4. Nf3 {[%clk 0:03:00]} 4... Nf6 {[%clk 0:02:59.3]} 5. Bb5+ {[%clk 0:03:00]}
5... c6 {[%clk 0:02:59.6]} 6. dxc6 {[%clk 0:03:00.1]} 6... Nxc6 {[%clk
0:03:00.5]} 7. Nc3 {[%clk 0:02:58.7]} 7... Bg4 {[%clk 0:02:57.6]} 8. O-O {[%clk
0:02:53.5]} 8... Bc5+ {[%clk 0:02:52.3]} 9. d4 {[%clk 0:02:52.8]} 9... Bxf3
{[%clk 0:02:42.9]} 10. Qxf3 {[%clk 0:02:52.8]} 10... Qxd4+ {[%clk 0:02:35.9]}
11. Kh1 {[%clk 0:02:52.2]} 11... O-O {[%clk 0:02:30.4]} 12. Bxc6 {[%clk
0:02:51.8]} 12... bxc6 {[%clk 0:02:30.4]} 13. Bxf4 {[%clk 0:02:51.8]} 13... Rac8
{[%clk 0:02:19.1]} 14. Rad1 {[%clk 0:02:48.2]} 14... Qb4 {[%clk 0:02:18.8]} 15.
b3 {[%clk 0:02:45.4]} 15... Rcd8 {[%clk 0:01:59.5]} 16. Na4 {[%clk 0:02:44.3]}
16... Bb6 {[%clk 0:01:43.6]} 17. Nxb6 {[%clk 0:02:33.9]} 17... axb6 {[%clk
0:01:44.5]} 18. Bg5 {[%clk 0:02:29.7]} 18... Rxd1 {[%clk 0:01:36.1]} 19. Qxd1
{[%clk 0:02:28.5]} 19... Ne4 {[%clk 0:01:25.3]} 20. Bh4 {[%clk 0:02:20.9]} 20...
Re8 {[%clk 0:01:17]} 21. Qd7 {[%clk 0:02:09]} 21... Nd6 {[%clk 0:00:35.5]} 22.
Bg3 {[%clk 0:01:53.6]} 22... Qb5 {[%clk 0:00:25.2]} 23. c4 {[%clk 0:01:52.2]}
23... Qh5 {[%clk 0:00:20.3]} 24. Qxd6 {[%clk 0:01:46.2]} 24... Qe2 {[%clk
0:00:18]} 25. Qf4 {[%clk 0:01:44.3]} 25... f6 {[%clk 0:00:18.2]} 26. Qf2 {[%clk
0:01:35]} 26... Qd3 {[%clk 0:00:17.6]} 27. Re1 {[%clk 0:01:26.7]} 27... Rxe1+
{[%clk 0:00:16.3]} 28. Qxe1 {[%clk 0:01:26.7]} 28... h6 {[%clk 0:00:16.4]} 29.
h3 {[%clk 0:01:24.7]} 29... Qc2 {[%clk 0:00:16.1]} 30. Qf2 {[%clk 0:01:24.1]}
30... Qd1+ {[%clk 0:00:15.2]} 31. Kh2 {[%clk 0:01:24.7]} 31... c5 {[%clk
0:00:15.8]} 32. Bc7 {[%clk 0:01:23.2]} 32... h5 {[%clk 0:00:14.5]} 33. Qg3
{[%clk 0:01:22.2]} 33... Qe2 {[%clk 0:00:11.2]} 34. Bxb6 {[%clk 0:01:21.2]}
34... Qxa2 {[%clk 0:00:10.5]} 35. Bxc5 {[%clk 0:01:20.6]} 35... g5 {[%clk
0:00:11.2]} 36. Qb8+ {[%clk 0:01:16.8]} 36... Kh7 {[%clk 0:00:11.4]} 37. Qc7+
{[%clk 0:01:15.9]} 37... Kg6 {[%clk 0:00:11.6]} 38. Bf8 {[%clk 0:01:15.1]} 38...
Qf2 {[%clk 0:00:05.7]} 39. Qg7+ {[%clk 0:01:14.2]} 39... Kf5 {[%clk 0:00:05.4]}
40. Qh7+ {[%clk 0:01:14]} 40... Kf4 {[%clk 0:00:05.4]} 41. Bd6+ {[%clk
0:01:13.4]} 41... Ke3 {[%clk 0:00:05.8]} 42. Bc5+ {[%clk 0:01:12.6]} 42... Ke2
{[%clk 0:00:01.6]} 43. Qc2+ {[%clk 0:01:08.1]} 1-0

[Event "Late-Titled-Tuesday-Blitz-February-06-2024"]
[Site "Chess.com"]
[Date "2024.02.06"]
[Round "9"]
[White "Fandorine"]
[Black "tactic"]
[Result "1-0"]
[WhiteElo "2932"]
[BlackElo "2655"]
[TimeControl "180+1"]
[EndTime "15:44:07 PST"]
[Termination "Fandorine won by resignation"]

1. d4 {[%clk 0:03:00.9]} 1... Nf6 {[%clk 0:02:57.6]} 2. c4 {[%clk 0:03:00.8]}
2... e6 {[%clk 0:02:57.9]} 3. Nf3 {[%clk 0:03:00.8]} 3... d5 {[%clk 0:02:58]} 4.
Qc2 {[%clk 0:02:59]} 4... Be7 {[%clk 0:02:34]} 5. Bg5 {[%clk 0:02:57.7]} 5...
O-O {[%clk 0:02:33.3]} 6. e3 {[%clk 0:02:55.4]} 6... Nbd7 {[%clk 0:02:33.4]} 7.
Nc3 {[%clk 0:02:53.6]} 7... c6 {[%clk 0:02:32.1]} 8. Bd3 {[%clk 0:02:49.9]} 8...
dxc4 {[%clk 0:02:27.7]} 9. Bxc4 {[%clk 0:02:50.8]} 9... b5 {[%clk 0:02:28.3]}
10. Bd3 {[%clk 0:02:51.3]} 10... b4 {[%clk 0:02:21.2]} 11. Ne4 {[%clk
0:02:46.5]} 11... Nxe4 {[%clk 0:01:59.8]} 12. Bxe7 {[%clk 0:02:44.7]} 12... Qxe7
{[%clk 0:02:00.7]} 13. Bxe4 {[%clk 0:02:45.1]} 13... Ba6 {[%clk 0:02:00.1]} 14.
Bxh7+ {[%clk 0:02:42.4]} 14... Kh8 {[%clk 0:02:00.1]} 15. Bd3 {[%clk 0:02:43.3]}
15... Bxd3 {[%clk 0:01:42.7]} 16. Qxd3 {[%clk 0:02:43.1]} 16... e5 {[%clk
0:01:41.8]} 17. dxe5 {[%clk 0:02:18.4]} 17... Nxe5 {[%clk 0:01:42.7]} 18. Nxe5
{[%clk 0:02:18.5]} 18... Qxe5 {[%clk 0:01:43.6]} 19. Qc2 {[%clk 0:02:19]} 19...
Qb5 {[%clk 0:01:41.7]} 20. Rc1 {[%clk 0:02:08.9]} 20... Rac8 {[%clk 0:01:32.5]}
21. Qc4 {[%clk 0:02:08.1]} 21... Qg5 {[%clk 0:01:11.7]} 22. O-O {[%clk
0:02:06.5]} 22... c5 {[%clk 0:01:11.1]} 23. h4 {[%clk 0:02:01.1]} 23... Qh6
{[%clk 0:01:07.6]} 24. Rfd1 {[%clk 0:02:00.1]} 24... Rc6 {[%clk 0:01:01.3]} 25.
Rd5 {[%clk 0:01:58.5]} 25... Rfc8 {[%clk 0:00:58.7]} 26. Rcd1 {[%clk 0:01:56.2]}
26... Qf6 {[%clk 0:00:49.2]} 27. R1d2 {[%clk 0:01:50.7]} 27... g6 {[%clk
0:00:41.2]} 28. g3 {[%clk 0:01:50.3]} 28... Kg7 {[%clk 0:00:41.2]} 29. Kg2
{[%clk 0:01:48.7]} 29... Qe6 {[%clk 0:00:22.5]} 30. b3 {[%clk 0:01:46.6]} 30...
a5 {[%clk 0:00:19.3]} 31. e4 {[%clk 0:01:44.5]} 31... Ra8 {[%clk 0:00:17.7]} 32.
f4 {[%clk 0:01:02]} 32... a4 {[%clk 0:00:12.9]} 33. f5 {[%clk 0:01:02.4]} 33...
Qf6 {[%clk 0:00:11.3]} 34. fxg6 {[%clk 0:00:57]} 34... fxg6 {[%clk 0:00:07.3]}
35. Rxc5 {[%clk 0:00:53.8]} 35... Rxc5 {[%clk 0:00:06.2]} 36. Qxc5 {[%clk
0:00:54.7]} 36... axb3 {[%clk 0:00:05.4]} 37. axb3 {[%clk 0:00:53.3]} 37... Rf8
{[%clk 0:00:04.1]} 38. Rf2 {[%clk 0:00:52.5]} 38... Qd8 {[%clk 0:00:02.5]} 39.
Qxf8+ {[%clk 0:00:51.5]} 39... Qxf8 {[%clk 0:00:02.6]} 40. Rxf8 {[%clk
0:00:52.4]} 40... g5 {[%clk 0:00:03.5]} 41. Kf3 {[%clk 0:00:53.1]} 41... g4+
{[%clk 0:00:03.5]} 42. Kxg4 {[%clk 0:00:53.2]} 42... Kh7 {[%clk 0:00:04.4]} 1-0

[Event "Late-Titled-Tuesday-Blitz-February-06-2024"]
[Site "Chess.com"]
[Date "2024.02.06"]
[Round "9"]
[White "HalfIsCrayfish"]
[Black "Bkmzzzzz"]
[Result "1-0"]
[WhiteElo "2585"]
[BlackElo "2414"]
[TimeControl "180+1"]
[EndTime "15:44:07 PST"]
[Termination "HalfIsCrayfish won by checkmate"]

1. Nc3 {[%clk 0:03:00.9]} 1... d6 {[%clk 0:02:32.7]} 2. e4 {[%clk 0:02:59.8]}
2... Nf6 {[%clk 0:02:29.3]} 3. g3 {[%clk 0:02:49.7]} 3... e5 {[%clk 0:02:27.6]}
4. Bg2 {[%clk 0:02:41.7]} 4... Be7 {[%clk 0:02:25.9]} 5. Nge2 {[%clk 0:02:39.9]}
5... O-O {[%clk 0:02:25.4]} 6. O-O {[%clk 0:02:37.6]} 6... c6 {[%clk 0:02:25.8]}
7. d3 {[%clk 0:02:36.3]} 7... b5 {[%clk 0:02:24.4]} 8. h3 {[%clk 0:02:34.7]}
8... a5 {[%clk 0:02:24.9]} 9. f4 {[%clk 0:02:32.5]} 9... a4 {[%clk 0:02:21.8]}
10. a3 {[%clk 0:02:32.4]} 10... Bb7 {[%clk 0:02:11.2]} 11. g4 {[%clk 0:02:28.4]}
11... Nfd7 {[%clk 0:02:02.4]} 12. Kh2 {[%clk 0:02:24.4]} 12... f6 {[%clk
0:01:48.6]} 13. Ng3 {[%clk 0:02:19.3]} 13... Rf7 {[%clk 0:01:43.7]} 14. h4
{[%clk 0:02:11.6]} 14... Nc5 {[%clk 0:01:40.3]} 15. Bh3 {[%clk 0:02:07.3]} 15...
Nba6 {[%clk 0:01:28.2]} 16. Be3 {[%clk 0:02:01]} 16... Qa5 {[%clk 0:01:09.5]}
17. Qd2 {[%clk 0:01:55.4]} 17... exf4 {[%clk 0:00:59.4]} 18. Bxf4 {[%clk
0:01:53.5]} 18... d5 {[%clk 0:01:00]} 19. g5 {[%clk 0:01:46.4]} 19... fxg5
{[%clk 0:00:55.1]} 20. Bxg5 {[%clk 0:01:41.5]} 20... Bxg5 {[%clk 0:00:49.8]} 21.
Qxg5 {[%clk 0:01:40.2]} 21... Rff8 {[%clk 0:00:49.6]} 22. exd5 {[%clk
0:01:30.2]} 22... cxd5 {[%clk 0:00:46.7]} 23. Nxd5 {[%clk 0:01:24.9]} 23... Kh8
{[%clk 0:00:43.2]} 24. Rxf8+ {[%clk 0:01:04.7]} 24... Rxf8 {[%clk 0:00:44.1]}
25. Nh5 {[%clk 0:01:04]} 25... Rf7 {[%clk 0:00:19.4]} 26. Re1 {[%clk 0:00:59.8]}
26... Bc6 {[%clk 0:00:17.3]} 27. Re7 {[%clk 0:00:51.5]} 27... Rxe7 {[%clk
0:00:16.4]} 28. Nxe7 {[%clk 0:00:48.7]} 28... Qc7+ {[%clk 0:00:16.9]} 29. Kg1
{[%clk 0:00:44.8]} 29... Ne6 {[%clk 0:00:07.7]} 30. Bxe6 {[%clk 0:00:43.9]}
30... Qb6+ {[%clk 0:00:08.1]} 31. Kf1 {[%clk 0:00:40.7]} 31... Qd4 {[%clk
0:00:06]} 32. Nxc6 {[%clk 0:00:31]} 32... Qxb2 {[%clk 0:00:05.5]} 33. Qd8#
{[%clk 0:00:26.9]} 1-0

[Event "Late-Titled-Tuesday-Blitz-February-06-2024"]
[Site "Chess.com"]
[Date "2024.02.06"]
[Round "9"]
[White "PawnEatingZombie"]
[Black "wild3000"]
[Result "0-1"]
[WhiteElo "2200"]
[BlackElo "2359"]
[TimeControl "180+1"]
[EndTime "15:44:15 PST"]
[Termination "wild3000 won by resignation"]

1. e4 {[%clk 0:03:00.9]} 1... a6 {[%clk 0:02:59.5]} 2. g3 {[%clk 0:02:58]} 2...
b5 {[%clk 0:02:59]} 3. Bg2 {[%clk 0:02:58.5]} 3... Bb7 {[%clk 0:02:59.8]} 4. Ne2
{[%clk 0:02:55.9]} 4... h5 {[%clk 0:02:58.9]} 5. h4 {[%clk 0:02:53.7]} 5... Nf6
{[%clk 0:02:58.2]} 6. d3 {[%clk 0:02:52.1]} 6... c5 {[%clk 0:02:57]} 7. a4
{[%clk 0:02:51.5]} 7... e6 {[%clk 0:02:53.2]} 8. O-O {[%clk 0:02:50.3]} 8... Qc7
{[%clk 0:02:51.1]} 9. Na3 {[%clk 0:02:37.6]} 9... b4 {[%clk 0:02:49.8]} 10. Nc4
{[%clk 0:02:35.6]} 10... d6 {[%clk 0:02:48.5]} 11. a5 {[%clk 0:02:34.9]} 11...
Nbd7 {[%clk 0:02:47.5]} 12. Nf4 {[%clk 0:02:04.4]} 12... Be7 {[%clk 0:02:45]}
13. Bd2 {[%clk 0:01:55.2]} 13... e5 {[%clk 0:02:32]} 14. Nh3 {[%clk 0:01:49.8]}
14... Ng4 {[%clk 0:02:27.5]} 15. Ne3 {[%clk 0:01:44.1]} 15... Nxe3 {[%clk
0:02:26]} 16. Bxe3 {[%clk 0:01:43.8]} 16... Nf6 {[%clk 0:02:24.4]} 17. Bg5
{[%clk 0:01:30]} 17... Ng4 {[%clk 0:02:21.4]} 18. c3 {[%clk 0:01:23.3]} 18...
bxc3 {[%clk 0:02:09.6]} 19. bxc3 {[%clk 0:01:22.9]} 19... O-O {[%clk 0:02:02.9]}
20. Qe2 {[%clk 0:01:05.4]} 20... Rab8 {[%clk 0:01:41.4]} 21. Rfb1 {[%clk
0:01:02.8]} 21... Bc6 {[%clk 0:01:39.9]} 22. Bxe7 {[%clk 0:00:59.2]} 22... Qxe7
{[%clk 0:01:39.5]} 23. Rb6 {[%clk 0:00:58.3]} 23... Rxb6 {[%clk 0:01:31.6]} 24.
axb6 {[%clk 0:00:59.2]} 24... Qb7 {[%clk 0:01:30.7]} 25. Rb1 {[%clk 0:00:57.1]}
25... a5 {[%clk 0:01:25.7]} 26. f3 {[%clk 0:00:48.9]} 26... Nf6 {[%clk 0:01:25]}
27. Ng5 {[%clk 0:00:47.8]} 27... a4 {[%clk 0:01:23.5]} 28. Qa2 {[%clk
0:00:46.1]} 28... Ra8 {[%clk 0:01:20.5]} 29. Bh3 {[%clk 0:00:34.2]} 29... Be8
{[%clk 0:01:17.3]} 30. d4 {[%clk 0:00:15.5]} 30... cxd4 {[%clk 0:01:11.5]} 31.
cxd4 {[%clk 0:00:16.4]} 31... exd4 {[%clk 0:01:11.7]} 32. Qc4 {[%clk 0:00:15.5]}
32... a3 {[%clk 0:01:04.1]} 33. Qxd4 {[%clk 0:00:15.5]} 33... a2 {[%clk
0:01:04.1]} 34. Ra1 {[%clk 0:00:16.1]} 34... Ra6 {[%clk 0:00:50.1]} 35. Bf1
{[%clk 0:00:15.9]} 35... Rxb6 {[%clk 0:00:46.5]} 36. Rxa2 {[%clk 0:00:16.1]}
36... Rb1 {[%clk 0:00:44.7]} 37. Qxd6 {[%clk 0:00:13.9]} 37... Rxf1+ {[%clk
0:00:37.2]} 38. Kxf1 {[%clk 0:00:10.8]} 38... Qb1+ {[%clk 0:00:37.7]} 39. Kg2
{[%clk 0:00:10.9]} 39... Qxa2+ {[%clk 0:00:37.5]} 40. Kh3 {[%clk 0:00:11.6]}
40... Bd7+ {[%clk 0:00:33.4]} 0-1

[Event "Late-Titled-Tuesday-Blitz-February-06-2024"]
[Site "Chess.com"]
[Date "2024.02.06"]
[Round "9"]
[White "dedpihto_v_kozhanom_palto"]
[Black "Payyappat"]
[Result "1-0"]
[WhiteElo "2703"]
[BlackElo "2535"]
[TimeControl "180+1"]
[EndTime "15:44:19 PST"]
[Termination "dedpihto_v_kozhanom_palto won on time"]

1. c4 {[%clk 0:02:29.3]} 1... c5 {[%clk 0:02:57.8]} 2. e3 {[%clk 0:02:29.1]}
2... Nf6 {[%clk 0:02:57.1]} 3. d4 {[%clk 0:02:29.7]} 3... cxd4 {[%clk
0:02:49.8]} 4. exd4 {[%clk 0:02:30.6]} 4... d5 {[%clk 0:02:49.9]} 5. cxd5 {[%clk
0:02:31.5]} 5... Nxd5 {[%clk 0:02:48.7]} 6. Nf3 {[%clk 0:02:32.1]} 6... Nc6
{[%clk 0:02:49.6]} 7. h3 {[%clk 0:02:30.9]} 7... g6 {[%clk 0:02:49]} 8. Bd3
{[%clk 0:02:31.1]} 8... Bg7 {[%clk 0:02:49.2]} 9. O-O {[%clk 0:02:31.8]} 9...
O-O {[%clk 0:02:48.8]} 10. Be3 {[%clk 0:02:30]} 10... Qb6 {[%clk 0:02:44.7]} 11.
Qd2 {[%clk 0:02:16.5]} 11... Be6 {[%clk 0:02:34.4]} 12. Nc3 {[%clk 0:02:16]}
12... Rfd8 {[%clk 0:02:30]} 13. Na4 {[%clk 0:02:14.5]} 13... Qb4 {[%clk
0:02:21.7]} 14. Qxb4 {[%clk 0:02:10.6]} 14... Ndxb4 {[%clk 0:02:22.6]} 15. Be4
{[%clk 0:02:11]} 15... Nxd4 {[%clk 0:02:11.7]} 16. Nxd4 {[%clk 0:02:04.6]} 16...
Bxd4 {[%clk 0:02:12.6]} 17. Bxd4 {[%clk 0:02:05.3]} 17... Rxd4 {[%clk
0:02:13.5]} 18. Bxb7 {[%clk 0:02:06]} 18... Rb8 {[%clk 0:02:13.4]} 19. Bf3
{[%clk 0:02:06.6]} 19... Nc2 {[%clk 0:02:01.2]} 20. Rac1 {[%clk 0:02:03.5]}
20... Rxa4 {[%clk 0:01:59.2]} 21. Rxc2 {[%clk 0:02:03.7]} 21... Rxa2 {[%clk
0:01:59.4]} 22. Rc7 {[%clk 0:01:56.6]} 22... Rbxb2 {[%clk 0:01:54.4]} 23. Rxe7
{[%clk 0:01:55]} 23... a5 {[%clk 0:01:54.5]} 24. Ra7 {[%clk 0:01:52.2]} 24... a4
{[%clk 0:01:53.6]} 25. h4 {[%clk 0:01:43.5]} 25... a3 {[%clk 0:01:49.1]} 26. h5
{[%clk 0:01:43.3]} 26... Kg7 {[%clk 0:01:47.5]} 27. hxg6 {[%clk 0:01:42.5]}
27... hxg6 {[%clk 0:01:47.2]} 28. Re1 {[%clk 0:01:42.5]} 28... Kf6 {[%clk
0:01:41.3]} 29. Ra6 {[%clk 0:01:30.4]} 29... Rxf2 {[%clk 0:01:30.9]} 30. Bd5
{[%clk 0:01:28.8]} 30... Rad2 {[%clk 0:00:55]} 31. Bxe6 {[%clk 0:01:27.2]} 31...
Rxg2+ {[%clk 0:00:54.8]} 32. Kh1 {[%clk 0:01:27.6]} 32... Rh2+ {[%clk
0:00:54.8]} 33. Kg1 {[%clk 0:01:28.2]} 33... Rdg2+ {[%clk 0:00:53.7]} 34. Kf1
{[%clk 0:01:28.3]} 34... Rf2+ {[%clk 0:00:53.7]} 35. Kg1 {[%clk 0:01:28.7]}
35... Rhg2+ {[%clk 0:00:53.4]} 36. Kh1 {[%clk 0:01:29.3]} 36... fxe6 {[%clk
0:00:53.4]} 37. Rexe6+ {[%clk 0:01:19.2]} 37... Kf7 {[%clk 0:00:53.4]} 38. Rec6
{[%clk 0:01:13]} 38... Rg3 {[%clk 0:00:19.4]} 39. Ra7+ {[%clk 0:01:01.3]} 39...
Kg8 {[%clk 0:00:18.3]} 40. Rc8+ {[%clk 0:01:01.5]} 40... Rf8 {[%clk 0:00:18.1]}
41. Rcc7 {[%clk 0:01:02.2]} 41... Rh3+ {[%clk 0:00:06.6]} 42. Kg2 {[%clk
0:01:01.7]} 42... Rh5 {[%clk 0:00:02]} 43. Rxa3 {[%clk 0:00:57.5]} 43... Rg5+
{[%clk 0:00:01.8]} 44. Kh3 {[%clk 0:00:49.5]} 1-0

[Event "Late-Titled-Tuesday-Blitz-February-06-2024"]
[Site "Chess.com"]
[Date "2024.02.06"]
[Round "9"]
[White "Njal28"]
[Black "ChessSwole"]
[Result "1-0"]
[WhiteElo "2994"]
[BlackElo "2670"]
[TimeControl "180+1"]
[EndTime "15:44:29 PST"]
[Termination "Njal28 won by resignation"]

1. e4 {[%clk 0:03:00.9]} 1... c5 {[%clk 0:02:57.6]} 2. Nf3 {[%clk 0:03:00.6]}
2... e6 {[%clk 0:02:58]} 3. d4 {[%clk 0:03:00.3]} 3... cxd4 {[%clk 0:02:58.9]}
4. Qxd4 {[%clk 0:03:00.6]} 4... Nc6 {[%clk 0:02:58.2]} 5. Qe3 {[%clk 0:03:01.2]}
5... Nf6 {[%clk 0:02:47.3]} 6. Nc3 {[%clk 0:03:01.5]} 6... Qa5 {[%clk 0:02:39]}
7. Bd2 {[%clk 0:03:00]} 7... Bc5 {[%clk 0:02:38.6]} 8. Qg5 {[%clk 0:02:49.4]}
8... Rg8 {[%clk 0:01:39.3]} 9. e5 {[%clk 0:02:27.7]} 9... h6 {[%clk 0:01:33.8]}
10. Qf4 {[%clk 0:02:23.4]} 10... Nh5 {[%clk 0:01:04.4]} 11. Qg4 {[%clk
0:02:21.2]} 11... Nxe5 {[%clk 0:00:50.1]} 12. Nxe5 {[%clk 0:02:03.5]} 12...
Bxf2+ {[%clk 0:00:49.9]} 13. Kxf2 {[%clk 0:02:04.4]} 13... Qxe5 {[%clk
0:00:50.1]} 14. Re1 {[%clk 0:02:04.6]} 14... Nf6 {[%clk 0:00:48.9]} 15. Qf4
{[%clk 0:01:55]} 15... Qc5+ {[%clk 0:00:40.7]} 16. Be3 {[%clk 0:01:54.6]} 16...
Qe7 {[%clk 0:00:37.8]} 17. Nb5 {[%clk 0:01:36.1]} 17... Nd5 {[%clk 0:00:37.1]}
18. Nc7+ {[%clk 0:01:32.1]} 18... Nxc7 {[%clk 0:00:36.7]} 19. Qxc7 {[%clk
0:01:33]} 19... f5 {[%clk 0:00:29.2]} 20. Bc5 {[%clk 0:01:27.9]} 20... Qh4+
{[%clk 0:00:28.6]} 21. g3 {[%clk 0:01:28.5]} 21... Qf6 {[%clk 0:00:29.1]} 22.
Bg2 {[%clk 0:01:21.7]} 22... g5 {[%clk 0:00:25.3]} 23. c3 {[%clk 0:01:11.8]}
23... f4 {[%clk 0:00:22.6]} 24. g4 {[%clk 0:01:10.9]} 24... a5 {[%clk
0:00:18.7]} 25. Bf3 {[%clk 0:00:59.9]} 25... Kf7 {[%clk 0:00:18.4]} 26. Bd4
{[%clk 0:00:59.3]} 26... Qe7 {[%clk 0:00:18.2]} 27. Qe5 {[%clk 0:00:55.8]} 27...
Ra6 {[%clk 0:00:15.7]} 28. Qe4 {[%clk 0:00:53.9]} 28... Rg6 {[%clk 0:00:13.7]}
29. h4 {[%clk 0:00:54.5]} 29... d5 {[%clk 0:00:13.7]} 30. Qd3 {[%clk 0:00:53.3]}
30... gxh4 {[%clk 0:00:14.1]} 31. g5 {[%clk 0:00:50.7]} 31... Rxg5 {[%clk
0:00:12.4]} 32. Qh7+ {[%clk 0:00:49.9]} 32... Ke8 {[%clk 0:00:12.4]} 33. Qxh6
{[%clk 0:00:47.8]} 33... e5 {[%clk 0:00:10.9]} 34. Qxg5 {[%clk 0:00:44.9]} 34...
Qxg5 {[%clk 0:00:09.7]} 35. Rxe5+ {[%clk 0:00:45.6]} 35... Qxe5 {[%clk
0:00:09.9]} 36. Bxe5 {[%clk 0:00:46.5]} 36... h3 {[%clk 0:00:09.7]} 37. Bxf4
{[%clk 0:00:44]} 37... Rb6 {[%clk 0:00:09.8]} 38. b3 {[%clk 0:00:43.6]} 38... a4
{[%clk 0:00:09.9]} 39. Bxd5 {[%clk 0:00:42.7]} 39... axb3 {[%clk 0:00:09.9]} 40.
axb3 {[%clk 0:00:43.6]} 40... Ra6 {[%clk 0:00:09.4]} 41. b4 {[%clk 0:00:38.4]}
41... Ra3 {[%clk 0:00:09.3]} 42. Be5 {[%clk 0:00:38.1]} 42... Bf5 {[%clk
0:00:08.1]} 43. Ke3 {[%clk 0:00:37.3]} 43... Ke7 {[%clk 0:00:07.8]} 44. Kf4
{[%clk 0:00:37.6]} 44... Bd7 {[%clk 0:00:07.7]} 45. Be4 {[%clk 0:00:35.9]} 45...
b5 {[%clk 0:00:07]} 46. Bf5 {[%clk 0:00:33.6]} 1-0